[Event "Titled Tuesday Blitz January 03 Late 2023"]
[White "Stachanczyk, Jacek"]
[Black "Kosteniuk, Alexandra"]
[WhiteFideId "1116657"]
[BlackFideId "4128125"]
[WhiteElo "2147"]
[BlackElo "2535"]
[Result "0-1"]
[Round "08"]
[TimeControl "180+2"]
[Date "2023.01.03"]
[WhiteClock "0:00:19"]
[BlackClock "0:00:14"]

1. e4 {[%clk 0:03:00]}  c6 {[%clk 0:02:59]} 2. d4 {[%clk 0:03:00]}  d5 {[%clk 0:03:00]} 3. Nc3 {[%clk 0:03:00]}  dxe4 {[%clk 0:03:00]} 4. Nxe4 {[%clk 0:03:00]}  Nf6 {[%clk 0:03:00]} 5. Nxf6+ {[%clk 0:02:59]}  exf6 {[%clk 0:03:01]} 6. c3 {[%clk 0:02:59]}  Bd6 {[%clk 0:03:02]} 7. Bd3 {[%clk 0:02:59]}  O-O {[%clk 0:03:01]} 8. Ne2 {[%clk 0:02:59]}  Re8 {[%clk 0:03:01]} 9. O-O {[%clk 0:02:53]}  Nd7 {[%clk 0:03:00]} 10. Ng3 {[%clk 0:02:52]}  Nf8 {[%clk 0:02:59]} 11. Nf5 {[%clk 0:02:18]}  Bc7 {[%clk 0:02:53]} 12. Qc2 {[%clk 0:02:02]}  Ng6 {[%clk 0:02:52]} 13. g3 {[%clk 0:02:00]}  Be6 {[%clk 0:02:51]} 14. b3 {[%clk 0:01:51]}  Qd7 {[%clk 0:02:48]} 15. Bb2 {[%clk 0:01:44]}  Rad8 {[%clk 0:02:48]} 16. Rad1 {[%clk 0:01:43]}  Bd5 {[%clk 0:02:42]} 17. Rd2 {[%clk 0:01:22]}  Re6 {[%clk 0:02:19]} 18. Ne3 {[%clk 0:01:16]}  Re7 {[%clk 0:01:58]} 19. Nxd5 {[%clk 0:01:14]}  Qxd5 {[%clk 0:01:55]} 20. c4 {[%clk 0:01:11]}  Qh5 {[%clk 0:01:53]} 21. Be4 {[%clk 0:00:59]}  Rde8 {[%clk 0:01:37]} 22. Bg2 {[%clk 0:00:58]}  Nf4 {[%clk 0:01:33]} 23. gxf4 {[%clk 0:00:53]}  Bxf4 {[%clk 0:01:33]} 24. h3 {[%clk 0:00:53]}  Bxd2 {[%clk 0:01:33]} 25. Qxd2 {[%clk 0:00:54]}  Re2 {[%clk 0:01:33]} 26. Qc3 {[%clk 0:00:53]}  Qg5 {[%clk 0:01:30]} 27. Ba3 {[%clk 0:00:50]}  Rxa2 {[%clk 0:01:26]} 28. Bd6 {[%clk 0:00:49]}  f5 {[%clk 0:01:21]} 29. d5 {[%clk 0:00:45]}  cxd5 {[%clk 0:01:15]} 30. cxd5 {[%clk 0:00:46]}  f4 {[%clk 0:01:13]} 31. Qf3 {[%clk 0:00:44]}  Qg6 {[%clk 0:00:58]} 32. Bxf4 {[%clk 0:00:43]}  Rae2 {[%clk 0:00:54]} 33. Bg3 {[%clk 0:00:42]}  Re1 {[%clk 0:00:47]} 34. Rxe1 {[%clk 0:00:41]}  Rxe1+ {[%clk 0:00:47]} 35. Kh2 {[%clk 0:00:42]}  h5 {[%clk 0:00:43]} 36. d6 {[%clk 0:00:41]}  Qg5 {[%clk 0:00:44]} 37. h4 {[%clk 0:00:40]}  Qd8 {[%clk 0:00:36]} 38. Qxb7 {[%clk 0:00:39]}  Rd1 {[%clk 0:00:34]} 39. Bd5 {[%clk 0:00:37]}  Qf6 {[%clk 0:00:18]} 40. d7 {[%clk 0:00:33]}  Kh7 {[%clk 0:00:19]} 41. Be4+ {[%clk 0:00:24]}  g6 {[%clk 0:00:18]} 42. Qc7 {[%clk 0:00:20]}  Rd2 {[%clk 0:00:16]} 43. Kg2 {[%clk 0:00:19]}  Qd4 {[%clk 0:00:14]} 44. Qe5 {[%clk 0:00:14]}  Qxd7 {[%clk 0:00:13]} 45. Qf6 {[%clk 0:00:12]}  Qe6 {[%clk 0:00:08]} 46. Qxe6 {[%clk 0:00:12]}  fxe6 {[%clk 0:00:08]} 47. Bf4 {[%clk 0:00:09]}  Rd4 {[%clk 0:00:07]} 48. f3 {[%clk 0:00:09]}  Rb4 {[%clk 0:00:07]} 49. Bc2 {[%clk 0:00:09]}  Rxf4 {[%clk 0:00:07]} 50. Kf2 {[%clk 0:00:09]}  Rxh4 {[%clk 0:00:07]} 51. Ke3 {[%clk 0:00:09]}  Rb4 {[%clk 0:00:07]} 52. Kd3 {[%clk 0:00:09]}  h4 {[%clk 0:00:07]} 53. Kc3 {[%clk 0:00:09]}  Rb6 {[%clk 0:00:07]} 54. Kc4 {[%clk 0:00:09]}  Kh6 {[%clk 0:00:08]} 55. Be4 {[%clk 0:00:10]}  Rd6 {[%clk 0:00:08]} 56. f4 {[%clk 0:00:11]}  Rd1 {[%clk 0:00:08]} 57. Kc5 {[%clk 0:00:10]}  Re1 {[%clk 0:00:09]} 58. Bc6 {[%clk 0:00:10]}  Re3 {[%clk 0:00:09]} 59. Kd6 {[%clk 0:00:10]}  h3 {[%clk 0:00:09]} 60. b4 {[%clk 0:00:10]}  h2 {[%clk 0:00:10]} 61. b5 {[%clk 0:00:10]}  Re1 {[%clk 0:00:10]} 62. Bf3 {[%clk 0:00:10]}  Re3 {[%clk 0:00:10]} 63. Bg2 {[%clk 0:00:10]}  Re2 {[%clk 0:00:10]} 64. Bh1 {[%clk 0:00:10]}  Re1 {[%clk 0:00:10]} 65. Bg2 {[%clk 0:00:11]}  h1=Q {[%clk 0:00:11]} 66. Bxh1 {[%clk 0:00:11]}  Rxh1 {[%clk 0:00:12]} 67. Kxe6 {[%clk 0:00:11]}  Rb1 {[%clk 0:00:12]} 68. Ke5 {[%clk 0:00:12]}  Rxb5+ {[%clk 0:00:12]} 69. Ke4 {[%clk 0:00:12]}  a5 {[%clk 0:00:12]} 70. f5 {[%clk 0:00:13]}  gxf5+ {[%clk 0:00:12]} 71. Kd4 {[%clk 0:00:14]}  Rb4+ {[%clk 0:00:12]} 72. Kc5 {[%clk 0:00:14]}  f4 {[%clk 0:00:12]} 73. Kd5 {[%clk 0:00:15]}  f3 {[%clk 0:00:13]} 74. Ke5 {[%clk 0:00:16]}  f2 {[%clk 0:00:13]} 75. Ke6 {[%clk 0:00:17]}  f1=Q {[%clk 0:00:13]} 76. Kd6 {[%clk 0:00:18]}  Qd1+ {[%clk 0:00:14]} 77. Kc6 {[%clk 0:00:19]}  Qc2+ {[%clk 0:00:14]} 0-1


[Site "https://www.chess.com"]

[Event "Titled Tuesday Blitz January 03 Late 2023"]
[White "Dimitrov, Atanas"]
[Black "Adewumi, Tanitoluwa"]
[WhiteFideId "2901315"]
[BlackFideId "30966396"]
[WhiteElo "2269"]
[BlackElo "2283"]
[Result "0-1"]
[Round "08"]
[TimeControl "180+2"]
[Date "2023.01.03"]
[WhiteClock "0:00:42"]
[BlackClock "0:00:29"]

1. Nf3 {[%clk 0:03:00]}  Nf6 {[%clk 0:02:47]} 2. c4 {[%clk 0:03:00]}  e6 {[%clk 0:02:45]} 3. Nc3 {[%clk 0:03:00]}  b6 {[%clk 0:02:44]} 4. b3 {[%clk 0:03:00]}  Bb7 {[%clk 0:02:44]} 5. Bb2 {[%clk 0:03:01]}  d5 {[%clk 0:02:44]} 6. e3 {[%clk 0:03:01]}  Be7 {[%clk 0:02:44]} 7. Be2 {[%clk 0:03:01]}  O-O {[%clk 0:02:44]} 8. O-O {[%clk 0:03:02]}  Nbd7 {[%clk 0:02:45]} 9. d4 {[%clk 0:03:02]}  c5 {[%clk 0:02:45]} 10. Rc1 {[%clk 0:02:59]}  Rc8 {[%clk 0:02:44]} 11. cxd5 {[%clk 0:02:56]}  cxd4 {[%clk 0:02:20]} 12. Nxd4 {[%clk 0:02:08]}  Nxd5 {[%clk 0:02:11]} 13. Nxd5 {[%clk 0:02:06]}  Bxd5 {[%clk 0:02:10]} 14. Rxc8 {[%clk 0:01:55]}  Qxc8 {[%clk 0:02:02]} 15. Bf3 {[%clk 0:01:55]}  Bxf3 {[%clk 0:01:52]} 16. Qxf3 {[%clk 0:01:55]}  Bf6 {[%clk 0:01:46]} 17. Rc1 {[%clk 0:01:53]}  Qa6 {[%clk 0:01:45]} 18. a3 {[%clk 0:01:29]}  Nc5 {[%clk 0:01:39]} 19. Qd1 {[%clk 0:01:21]}  Rd8 {[%clk 0:01:19]} 20. Qc2 {[%clk 0:01:14]}  Nd3 {[%clk 0:00:50]} 21. Qe2 {[%clk 0:00:52]}  e5 {[%clk 0:00:31]} 22. Nc6 {[%clk 0:00:44]}  Nxc1 {[%clk 0:00:29]} 23. Qxa6 {[%clk 0:00:41]}  Rd1+ {[%clk 0:00:28]} 24. Qf1 {[%clk 0:00:42]}  Ne2+ {[%clk 0:00:29]} 0-1


[Site "https://www.chess.com"]

[Event "Titled Tuesday Blitz January 03 Late 2023"]
[White "AidenRchess"]
[Black "Papasimakopoulos, Alexandros"]
[BlackFideId "4244125"]
[WhiteElo "2398"]
[BlackElo "2401"]
[Result "0-1"]
[Round "08"]
[TimeControl "180+2"]
[Date "2023.01.03"]
[WhiteClock "0:00:02"]
[BlackClock "0:01:26"]

1. e4 {[%clk 0:03:00]}  e6 {[%clk 0:02:59]} 2. d4 {[%clk 0:03:00]}  d5 {[%clk 0:03:00]} 3. Nc3 {[%clk 0:03:00]}  Bb4 {[%clk 0:02:59]} 4. e5 {[%clk 0:03:00]}  b6 {[%clk 0:02:59]} 5. Qg4 {[%clk 0:02:54]}  Bf8 {[%clk 0:03:00]} 6. h4 {[%clk 0:02:51]}  h5 {[%clk 0:02:59]} 7. Qf4 {[%clk 0:02:47]}  Ba6 {[%clk 0:02:57]} 8. Nf3 {[%clk 0:02:44]}  Bxf1 {[%clk 0:02:56]} 9. Kxf1 {[%clk 0:02:41]}  Ne7 {[%clk 0:02:57]} 10. g3 {[%clk 0:02:34]}  Nbc6 {[%clk 0:02:55]} 11. a3 {[%clk 0:02:29]}  Nf5 {[%clk 0:02:54]} 12. Ne2 {[%clk 0:02:28]}  Nce7 {[%clk 0:02:54]} 13. b4 {[%clk 0:02:24]}  c5 {[%clk 0:02:52]} 14. dxc5 {[%clk 0:02:14]}  Ng6 {[%clk 0:02:52]} 15. Qd2 {[%clk 0:02:00]}  bxc5 {[%clk 0:02:52]} 16. Bb2 {[%clk 0:02:00]}  cxb4 {[%clk 0:02:52]} 17. axb4 {[%clk 0:01:59]}  Qb6 {[%clk 0:02:52]} 18. Bc3 {[%clk 0:01:47]}  Be7 {[%clk 0:02:52]} 19. Ned4 {[%clk 0:01:46]}  Nxd4 {[%clk 0:02:49]} 20. Nxd4 {[%clk 0:01:40]}  Nxe5 {[%clk 0:02:42]} 21. Nf5 {[%clk 0:01:31]}  exf5 {[%clk 0:02:35]} 22. Bxe5 {[%clk 0:01:29]}  O-O {[%clk 0:02:29]} 23. c3 {[%clk 0:01:27]}  a5 {[%clk 0:02:21]} 24. Kg2 {[%clk 0:01:20]}  axb4 {[%clk 0:02:20]} 25. Rxa8 {[%clk 0:01:21]}  Rxa8 {[%clk 0:02:19]} 26. Qxd5 {[%clk 0:01:02]}  Rd8 {[%clk 0:02:19]} 27. Qb3 {[%clk 0:00:47]}  Qc6+ {[%clk 0:02:18]} 28. Kh2 {[%clk 0:00:43]}  Qf3 {[%clk 0:02:10]} 29. Bd4 {[%clk 0:00:33]}  Rxd4 {[%clk 0:02:09]} 30. Qa4 {[%clk 0:00:31]}  Qxf2+ {[%clk 0:02:07]} 31. Kh3 {[%clk 0:00:31]}  Rxh4+ {[%clk 0:02:07]} 32. gxh4 {[%clk 0:00:29]}  Qf3+ {[%clk 0:02:07]} 33. Kh2 {[%clk 0:00:28]}  Bd6+ {[%clk 0:02:08]} 34. Kg1 {[%clk 0:00:28]}  Bc5+ {[%clk 0:01:56]} 35. Kh2 {[%clk 0:00:28]}  Bf2 {[%clk 0:01:44]} 36. Qe8+ {[%clk 0:00:18]}  Kh7 {[%clk 0:01:44]} 37. Qe5 {[%clk 0:00:18]}  Be3 {[%clk 0:01:44]} 38. Qe7 {[%clk 0:00:09]}  Bf4+ {[%clk 0:01:42]} 39. Kg1 {[%clk 0:00:09]}  bxc3 {[%clk 0:01:40]} 40. Qxf7 {[%clk 0:00:08]}  Bg3 {[%clk 0:01:35]} 41. Qa2 {[%clk 0:00:06]}  Bxh4 {[%clk 0:01:28]} 42. Qc2 {[%clk 0:00:03]}  Bg5 {[%clk 0:01:26]} 43. Rxh5+ {[%clk 0:00:02]}  Qxh5 {[%clk 0:01:25]} 44. Qxf5+ {[%clk 0:00:03]}  Qg6 {[%clk 0:01:26]} 45. Qh3+ {[%clk 0:00:02]}  Bh6+ {[%clk 0:01:26]} 0-1


[Site "https://www.chess.com"]

[Event "Titled Tuesday Blitz January 03 Late 2023"]
[White "Goltsev, Dmitry"]
[Black "Fernandez, Maria Florencia"]
[WhiteFideId "24176710"]
[BlackFideId "116459"]
[WhiteElo "2269"]
[BlackElo "2129"]
[Result "1-0"]
[Round "08"]
[TimeControl "180+2"]
[Date "2023.01.03"]
[WhiteClock "0:02:08"]
[BlackClock "0:00:02"]

1. e4 {[%clk 0:03:00]}  d6 {[%clk 0:02:59]} 2. d4 {[%clk 0:02:59]}  Nf6 {[%clk 0:02:59]} 3. Nc3 {[%clk 0:02:59]}  g6 {[%clk 0:02:58]} 4. Nf3 {[%clk 0:02:59]}  Bg7 {[%clk 0:02:58]} 5. h3 {[%clk 0:02:58]}  O-O {[%clk 0:02:57]} 6. Be2 {[%clk 0:02:57]}  c6 {[%clk 0:02:54]} 7. a4 {[%clk 0:02:57]}  a5 {[%clk 0:02:51]} 8. O-O {[%clk 0:02:56]}  Na6 {[%clk 0:02:49]} 9. Bg5 {[%clk 0:02:54]}  h6 {[%clk 0:02:46]} 10. Be3 {[%clk 0:02:53]}  Qc7 {[%clk 0:02:40]} 11. Qd2 {[%clk 0:02:52]}  Nb4 {[%clk 0:02:37]} 12. Bxh6 {[%clk 0:02:52]}  Bxh6 {[%clk 0:02:05]} 13. Qxh6 {[%clk 0:02:52]}  Nxc2 {[%clk 0:02:05]} 14. Rac1 {[%clk 0:02:52]}  Nb4 {[%clk 0:01:53]} 15. e5 {[%clk 0:02:43]}  dxe5 {[%clk 0:01:26]} 16. dxe5 {[%clk 0:02:44]}  Nh7 {[%clk 0:01:23]} 17. Bc4 {[%clk 0:02:43]}  Bf5 {[%clk 0:00:31]} 18. Nh4 {[%clk 0:02:34]}  Bd3 {[%clk 0:00:22]} 19. Bb3 {[%clk 0:02:27]}  Qxe5 {[%clk 0:00:14]} 20. Nxg6 {[%clk 0:02:25]}  Bxg6 {[%clk 0:00:13]} 21. Qxg6+ {[%clk 0:02:25]}  Qg7 {[%clk 0:00:14]} 22. Qh5 {[%clk 0:02:22]}  Qg5 {[%clk 0:00:08]} 23. Qf3 {[%clk 0:02:19]}  Nf6 {[%clk 0:00:05]} 24. Rce1 {[%clk 0:02:14]}  e6 {[%clk 0:00:04]} 25. Ne4 {[%clk 0:02:14]}  Nxe4 {[%clk 0:00:03]} 26. Rxe4 {[%clk 0:02:14]}  f5 {[%clk 0:00:02]} 27. Rxe6 {[%clk 0:02:13]}  Kg7 {[%clk 0:00:02]} 28. Rfe1 {[%clk 0:02:13]}  Nd5 {[%clk 0:00:01]} 29. Bxd5 {[%clk 0:02:10]}  cxd5 {[%clk 0:00:02]} 30. Qxd5 {[%clk 0:02:11]}  Rf7 {[%clk 0:00:02]} 31. Qd4+ {[%clk 0:02:08]} 1-0


[Site "https://www.chess.com"]

[Event "Titled Tuesday Blitz January 03 Late 2023"]
[White "Pranav, V"]
[Black "Chor, Kevin"]
[WhiteFideId "25060783"]
[BlackFideId "2090740"]
[WhiteElo "2597"]
[BlackElo "1944"]
[Result "1-0"]
[Round "08"]
[TimeControl "180+2"]
[Date "2023.01.03"]
[WhiteClock "0:02:20"]
[BlackClock "0:00:50"]

1. Nf3 {[%clk 0:03:00]}  c5 {[%clk 0:02:55]} 2. g3 {[%clk 0:03:01]}  g6 {[%clk 0:02:54]} 3. Bg2 {[%clk 0:03:02]}  Bg7 {[%clk 0:02:55]} 4. O-O {[%clk 0:03:03]}  Nc6 {[%clk 0:02:55]} 5. c4 {[%clk 0:03:03]}  Nf6 {[%clk 0:02:56]} 6. Nc3 {[%clk 0:03:04]}  O-O {[%clk 0:02:56]} 7. d3 {[%clk 0:03:05]}  d6 {[%clk 0:02:56]} 8. Rb1 {[%clk 0:03:04]}  Rb8 {[%clk 0:02:56]} 9. a3 {[%clk 0:03:03]}  a5 {[%clk 0:02:54]} 10. Nd2 {[%clk 0:03:03]}  Ne8 {[%clk 0:02:51]} 11. Nde4 {[%clk 0:02:59]}  Nc7 {[%clk 0:02:48]} 12. h4 {[%clk 0:02:57]}  Bd7 {[%clk 0:02:46]} 13. h5 {[%clk 0:02:56]}  b5 {[%clk 0:02:41]} 14. h6 {[%clk 0:02:53]}  Bh8 {[%clk 0:02:39]} 15. cxb5 {[%clk 0:02:53]}  Nxb5 {[%clk 0:02:40]} 16. Nxb5 {[%clk 0:02:53]}  Rxb5 {[%clk 0:02:40]} 17. Bd2 {[%clk 0:02:53]}  Rxb2 {[%clk 0:02:32]} 18. Rxb2 {[%clk 0:02:52]}  Bxb2 {[%clk 0:02:32]} 19. Bc3 {[%clk 0:02:52]}  Bxc3 {[%clk 0:02:29]} 20. Nxc3 {[%clk 0:02:53]}  e6 {[%clk 0:02:24]} 21. Ne4 {[%clk 0:02:52]}  Qe7 {[%clk 0:02:24]} 22. Qa1 {[%clk 0:02:51]}  f5 {[%clk 0:02:24]} 23. Nd2 {[%clk 0:02:51]}  Qf6 {[%clk 0:02:02]} 24. Qa2 {[%clk 0:02:46]}  Nd4 {[%clk 0:02:01]} 25. Nc4 {[%clk 0:02:46]}  d5 {[%clk 0:01:56]} 26. Nb6 {[%clk 0:02:44]}  Bc6 {[%clk 0:01:51]} 27. e3 {[%clk 0:02:44]}  Nb5 {[%clk 0:01:51]} 28. Rc1 {[%clk 0:02:41]}  Qe7 {[%clk 0:01:41]} 29. Na4 {[%clk 0:02:36]}  c4 {[%clk 0:01:36]} 30. dxc4 {[%clk 0:02:34]}  Qxa3 {[%clk 0:01:19]} 31. Qd2 {[%clk 0:02:22]}  Qxa4 {[%clk 0:01:07]} 32. cxb5 {[%clk 0:02:22]}  Qxb5 {[%clk 0:00:55]} 33. Qc3 {[%clk 0:02:20]}  Rf7 {[%clk 0:00:49]} 34. Qxc6 {[%clk 0:02:19]}  Qxc6 {[%clk 0:00:50]} 35. Rxc6 {[%clk 0:02:20]} 1-0


[Site "https://www.chess.com"]

[Event "Titled Tuesday Blitz January 03 Late 2023"]
[White "Rodriguez Fontecha, Marcos"]
[Black "Sanal, Vahap"]
[WhiteFideId "2256576"]
[BlackFideId "6300545"]
[WhiteElo "2309"]
[BlackElo "2600"]
[Result "0-1"]
[Round "08"]
[TimeControl "180+2"]
[Date "2023.01.03"]
[WhiteClock "0:00:01"]
[BlackClock "0:00:07"]

1. Nf3 {[%clk 0:03:00]}  g6 {[%clk 0:02:58]} 2. d4 {[%clk 0:02:59]}  Bg7 {[%clk 0:02:57]} 3. Bf4 {[%clk 0:02:59]}  d6 {[%clk 0:02:57]} 4. Nc3 {[%clk 0:03:00]}  Nf6 {[%clk 0:02:53]} 5. Qd2 {[%clk 0:03:00]}  c6 {[%clk 0:02:51]} 6. Bh6 {[%clk 0:03:00]}  O-O {[%clk 0:02:47]} 7. h4 {[%clk 0:03:00]}  b5 {[%clk 0:02:47]} 8. h5 {[%clk 0:02:50]}  b4 {[%clk 0:02:47]} 9. Nd1 {[%clk 0:02:49]}  c5 {[%clk 0:02:34]} 10. hxg6 {[%clk 0:02:40]}  fxg6 {[%clk 0:02:32]} 11. Bxg7 {[%clk 0:02:38]}  Kxg7 {[%clk 0:02:32]} 12. Qh6+ {[%clk 0:02:38]}  Kg8 {[%clk 0:02:32]} 13. Ng5 {[%clk 0:02:36]}  Rf7 {[%clk 0:02:20]} 14. Nxf7 {[%clk 0:02:37]}  Kxf7 {[%clk 0:02:20]} 15. e3 {[%clk 0:02:35]}  Be6 {[%clk 0:02:17]} 16. Qf4 {[%clk 0:02:26]}  Kg8 {[%clk 0:02:09]} 17. dxc5 {[%clk 0:02:20]}  dxc5 {[%clk 0:02:05]} 18. Bc4 {[%clk 0:02:21]}  Bxc4 {[%clk 0:02:03]} 19. Qxc4+ {[%clk 0:02:22]}  Kg7 {[%clk 0:02:04]} 20. Qxc5 {[%clk 0:02:18]}  Nbd7 {[%clk 0:02:03]} 21. Qxb4 {[%clk 0:02:15]}  Rb8 {[%clk 0:01:58]} 22. Qd2 {[%clk 0:02:15]}  Qc7 {[%clk 0:01:57]} 23. e4 {[%clk 0:02:08]}  Ne5 {[%clk 0:01:53]} 24. Qc3 {[%clk 0:01:58]}  Qd6 {[%clk 0:01:44]} 25. f3 {[%clk 0:01:44]}  h5 {[%clk 0:01:14]} 26. f4 {[%clk 0:01:36]}  Neg4 {[%clk 0:01:13]} 27. e5 {[%clk 0:01:36]}  Qe6 {[%clk 0:01:14]} 28. Ne3 {[%clk 0:01:30]}  Ne4 {[%clk 0:01:14]} 29. Qd4 {[%clk 0:01:18]}  Ng3 {[%clk 0:01:14]} 30. Rh3 {[%clk 0:01:14]}  Nxe3 {[%clk 0:00:58]} 31. Qxe3 {[%clk 0:01:15]}  Nf5 {[%clk 0:00:58]} 32. Qc3 {[%clk 0:01:10]}  Qb6 {[%clk 0:00:46]} 33. O-O-O {[%clk 0:01:07]}  Qa6 {[%clk 0:00:45]} 34. Qa3 {[%clk 0:01:05]}  Qe2 {[%clk 0:00:44]} 35. Qxa7 {[%clk 0:00:58]}  Rc8 {[%clk 0:00:44]} 36. Rc3 {[%clk 0:00:48]}  Rxc3 {[%clk 0:00:44]} 37. bxc3 {[%clk 0:00:48]}  Qxg2 {[%clk 0:00:45]} 38. a4 {[%clk 0:00:44]}  h4 {[%clk 0:00:45]} 39. a5 {[%clk 0:00:32]}  h3 {[%clk 0:00:46]} 40. a6 {[%clk 0:00:33]}  h2 {[%clk 0:00:46]} 41. Qb7 {[%clk 0:00:34]}  Qf2 {[%clk 0:00:20]} 42. a7 {[%clk 0:00:33]}  Qe3+ {[%clk 0:00:20]} 43. Kb2 {[%clk 0:00:31]}  Qe2 {[%clk 0:00:17]} 44. Rh1 {[%clk 0:00:29]}  Ne3 {[%clk 0:00:15]} 45. a8=Q {[%clk 0:00:22]}  Qxc2+ {[%clk 0:00:15]} 46. Ka3 {[%clk 0:00:13]}  Qxc3+ {[%clk 0:00:14]} 47. Ka4 {[%clk 0:00:14]}  Qc4+ {[%clk 0:00:10]} 48. Ka5 {[%clk 0:00:15]}  Qc5+ {[%clk 0:00:10]} 49. Ka6 {[%clk 0:00:09]}  Nc4 {[%clk 0:00:10]} 50. Qb5 {[%clk 0:00:04]}  Qd4 {[%clk 0:00:08]} 51. Qc8 {[%clk 0:00:01]}  Na3 {[%clk 0:00:05]} 52. Qb6 {[%clk 0:00:01]}  Qa4+ {[%clk 0:00:04]} 53. Kb7 {[%clk 0:00:01]}  Nc4 {[%clk 0:00:05]} 54. Qbc6 {[%clk 0:00:01]}  Na5+ {[%clk 0:00:06]} 55. Kb6 {[%clk 0:00:01]}  Qb4+ {[%clk 0:00:07]} 0-1


[Site "https://www.chess.com"]

[Event "Titled Tuesday Blitz January 03 Late 2023"]
[White "Maksimovic, Bojan"]
[Black "Omelja, Artem"]
[WhiteFideId "14408120"]
[BlackFideId "14119846"]
[WhiteElo "2486"]
[BlackElo "2446"]
[Result "1-0"]
[Round "08"]
[TimeControl "180+2"]
[Date "2023.01.03"]
[WhiteClock "0:00:07"]
[BlackClock "0:00:02"]

1. g3 {[%clk 0:03:00]}  d5 {[%clk 0:02:59]} 2. Bg2 {[%clk 0:03:00]}  c6 {[%clk 0:02:58]} 3. d4 {[%clk 0:02:54]}  Nf6 {[%clk 0:02:58]} 4. Nf3 {[%clk 0:02:54]}  Bf5 {[%clk 0:02:57]} 5. O-O {[%clk 0:02:54]}  Nbd7 {[%clk 0:02:57]} 6. c4 {[%clk 0:02:52]}  e6 {[%clk 0:02:55]} 7. Nh4 {[%clk 0:02:50]}  Bg4 {[%clk 0:02:55]} 8. h3 {[%clk 0:02:49]}  Bh5 {[%clk 0:02:55]} 9. g4 {[%clk 0:02:47]}  Ne4 {[%clk 0:02:48]} 10. Bxe4 {[%clk 0:02:35]}  dxe4 {[%clk 0:02:40]} 11. Ng2 {[%clk 0:02:33]}  Bg6 {[%clk 0:02:40]} 12. Nc3 {[%clk 0:02:23]}  Bd6 {[%clk 0:02:33]} 13. Bf4 {[%clk 0:02:14]}  Bxf4 {[%clk 0:02:08]} 14. Nxf4 {[%clk 0:02:15]}  Qf6 {[%clk 0:02:08]} 15. Qd2 {[%clk 0:01:57]}  O-O-O {[%clk 0:02:04]} 16. Rad1 {[%clk 0:01:45]}  h5 {[%clk 0:01:55]} 17. gxh5 {[%clk 0:01:26]}  Bxh5 {[%clk 0:01:42]} 18. Nxe4 {[%clk 0:01:25]}  Qh4 {[%clk 0:01:42]} 19. Ng3 {[%clk 0:01:04]}  Nf6 {[%clk 0:01:29]} 20. Qe3 {[%clk 0:00:39]}  g5 {[%clk 0:01:16]} 21. Nfxh5 {[%clk 0:00:36]}  Nxh5 {[%clk 0:01:15]} 22. Nxh5 {[%clk 0:00:36]}  Rxh5 {[%clk 0:01:11]} 23. Kg2 {[%clk 0:00:34]}  g4 {[%clk 0:00:54]} 24. Qg3 {[%clk 0:00:29]}  gxh3+ {[%clk 0:00:43]} 25. Kh2 {[%clk 0:00:29]}  Qe4 {[%clk 0:00:19]} 26. e3 {[%clk 0:00:20]}  Qc2 {[%clk 0:00:04]} 27. Rc1 {[%clk 0:00:18]}  Qe4 {[%clk 0:00:03]} 28. Rg1 {[%clk 0:00:16]}  Rhh8 {[%clk 0:00:02]} 29. Rc3 {[%clk 0:00:12]}  Rdg8 {[%clk 0:00:01]} 30. Qxg8+ {[%clk 0:00:11]}  Rxg8 {[%clk 0:00:02]} 31. Rxg8+ {[%clk 0:00:12]}  Kc7 {[%clk 0:00:02]} 32. Rg3 {[%clk 0:00:13]}  Qf5 {[%clk 0:00:02]} 33. f4 {[%clk 0:00:09]}  Qb1 {[%clk 0:00:02]} 34. Kxh3 {[%clk 0:00:07]}  Qxb2 {[%clk 0:00:02]} 35. e4 {[%clk 0:00:07]}  Qxa2 {[%clk 0:00:02]} 36. d5 {[%clk 0:00:07]} 1-0


[Site "https://www.chess.com"]

[Event "Titled Tuesday Blitz January 03 Late 2023"]
[White "De La Colina, Nicolas"]
[Black "Dourerassou, Jonathan"]
[WhiteFideId "30946921"]
[BlackFideId "628050"]
[WhiteElo "2244"]
[BlackElo "2414"]
[Result "0-1"]
[Round "08"]
[TimeControl "180+2"]
[Date "2023.01.03"]
[WhiteClock "0:00:02"]
[BlackClock "0:00:17"]

1. e4 {[%clk 0:02:59]}  e6 {[%clk 0:02:59]} 2. d4 {[%clk 0:02:57]}  d5 {[%clk 0:02:59]} 3. Nd2 {[%clk 0:02:58]}  dxe4 {[%clk 0:02:59]} 4. Nxe4 {[%clk 0:02:59]}  Nd7 {[%clk 0:03:00]} 5. Bd3 {[%clk 0:02:58]}  Ngf6 {[%clk 0:03:00]} 6. Nf3 {[%clk 0:02:59]}  Nxe4 {[%clk 0:02:59]} 7. Bxe4 {[%clk 0:02:59]}  Nf6 {[%clk 0:03:00]} 8. Bg5 {[%clk 0:03:00]}  Be7 {[%clk 0:02:59]} 9. Bxf6 {[%clk 0:02:59]}  Bxf6 {[%clk 0:03:00]} 10. Qd3 {[%clk 0:03:00]}  g6 {[%clk 0:02:59]} 11. O-O-O {[%clk 0:02:55]}  O-O {[%clk 0:02:58]} 12. h4 {[%clk 0:02:47]}  Bg7 {[%clk 0:02:58]} 13. h5 {[%clk 0:02:45]}  f5 {[%clk 0:02:58]} 14. hxg6 {[%clk 0:02:43]}  hxg6 {[%clk 0:02:56]} 15. Ne5 {[%clk 0:02:37]}  fxe4 {[%clk 0:02:51]} 16. Qh3 {[%clk 0:02:37]}  Qg5+ {[%clk 0:02:42]} 17. Kb1 {[%clk 0:02:35]}  Qh5 {[%clk 0:02:14]} 18. Qg3 {[%clk 0:02:26]}  Qf5 {[%clk 0:02:02]} 19. Qh2 {[%clk 0:02:04]}  Rf6 {[%clk 0:01:38]} 20. Qh7+ {[%clk 0:01:58]}  Kf8 {[%clk 0:01:38]} 21. f3 {[%clk 0:01:37]}  e3 {[%clk 0:01:28]} 22. g4 {[%clk 0:01:32]}  Qf4 {[%clk 0:01:12]} 23. g5 {[%clk 0:01:08]}  e2 {[%clk 0:01:07]} 24. gxf6 {[%clk 0:00:57]}  exd1=Q+ {[%clk 0:01:06]} 25. Rxd1 {[%clk 0:00:58]}  Qxf6 {[%clk 0:01:05]} 26. Rg1 {[%clk 0:00:52]}  g5 {[%clk 0:01:00]} 27. Ng6+ {[%clk 0:00:46]}  Kf7 {[%clk 0:00:55]} 28. Ne5+ {[%clk 0:00:44]}  Ke7 {[%clk 0:00:47]} 29. f4 {[%clk 0:00:44]}  Kd6 {[%clk 0:00:39]} 30. fxg5 {[%clk 0:00:36]}  Qf2 {[%clk 0:00:36]} 31. Rd1 {[%clk 0:00:26]}  Qe2 {[%clk 0:00:36]} 32. Rg1 {[%clk 0:00:16]}  Bxe5 {[%clk 0:00:32]} 33. dxe5+ {[%clk 0:00:17]}  Qxe5 {[%clk 0:00:32]} 34. Rd1+ {[%clk 0:00:16]}  Kc6 {[%clk 0:00:32]} 35. Qg8 {[%clk 0:00:16]}  b6 {[%clk 0:00:29]} 36. Qe8+ {[%clk 0:00:14]}  Kc5 {[%clk 0:00:28]} 37. Qe7+ {[%clk 0:00:14]}  Kb5 {[%clk 0:00:26]} 38. a3 {[%clk 0:00:10]}  Ba6 {[%clk 0:00:20]} 39. Qb4+ {[%clk 0:00:06]}  Kc6 {[%clk 0:00:20]} 40. g6 {[%clk 0:00:05]}  Rg8 {[%clk 0:00:19]} 41. Qg4 {[%clk 0:00:05]}  Kb7 {[%clk 0:00:18]} 42. Qg2+ {[%clk 0:00:05]}  Kb8 {[%clk 0:00:17]} 43. Rf1 {[%clk 0:00:04]}  Bb7 {[%clk 0:00:17]} 44. Qg4 {[%clk 0:00:04]}  Be4 {[%clk 0:00:17]} 45. Re1 {[%clk 0:00:02]}  Bxc2+ {[%clk 0:00:17]} 46. Ka2 {[%clk 0:00:02]}  Qxe1 {[%clk 0:00:18]} 47. Qxe6 {[%clk 0:00:02]}  Qxe6+ {[%clk 0:00:17]} 0-1


[Site "https://www.chess.com"]